[Event "*** SCC Grand Prix: Titled Tuesday Blitz"]
[Site "Chess.com"]
[Date "2020.06.02"]
[Round "9"]
[White "AlexSuv"]
[Black "aNaartjieZA"]
[Result "1-0"]
[WhiteElo "2781"]
[BlackElo "2585"]
[TimeControl "180+1"]
[EndTime "11:48:07 PDT"]
[Termination "AlexSuv won by resignation"]

1. d4 {[%clk 0:03:00.9]} 1... Nf6 {[%clk 0:02:59.8]} 2. Nf3 {[%clk 0:03:00.2]}
2... c5 {[%clk 0:02:59.7]} 3. d5 {[%clk 0:02:59.8]} 3... d6 {[%clk 0:03:00]} 4.
Nc3 {[%clk 0:02:58.8]} 4... e5 {[%clk 0:03:00]} 5. e4 {[%clk 0:02:57.5]} 5...
Be7 {[%clk 0:03:00]} 6. Bb5+ {[%clk 0:02:57.5]} 6... Nbd7 {[%clk 0:03:00.1]} 7.
a4 {[%clk 0:02:58.2]} 7... a6 {[%clk 0:02:51.3]} 8. Be2 {[%clk 0:02:57.7]} 8...
b6 {[%clk 0:02:51]} 9. O-O {[%clk 0:02:56.5]} 9... Nf8 {[%clk 0:02:50.9]} 10.
Nd2 {[%clk 0:02:53.4]} 10... Ng6 {[%clk 0:02:50.2]} 11. Nc4 {[%clk 0:02:50.5]}
11... Rb8 {[%clk 0:02:50.5]} 12. Re1 {[%clk 0:02:27.1]} 12... h5 {[%clk
0:02:48.7]} 13. Bg5 {[%clk 0:02:22.9]} 13... h4 {[%clk 0:02:42]} 14. h3 {[%clk
0:02:22.2]} 14... Nh7 {[%clk 0:02:37.6]} 15. Be3 {[%clk 0:02:18.1]} 15... Bg5
{[%clk 0:02:34]} 16. Bg4 {[%clk 0:02:16.1]} 16... Nf4 {[%clk 0:02:28.6]} 17.
Bxc8 {[%clk 0:02:11.8]} 17... Rxc8 {[%clk 0:02:29.5]} 18. Ra3 {[%clk 0:02:07.3]}
18... Rb8 {[%clk 0:02:26.4]} 19. Rb3 {[%clk 0:02:04.2]} 19... Nf8 {[%clk
0:02:23.2]} 20. Nd2 {[%clk 0:01:47.1]} 20... Nd7 {[%clk 0:02:09.5]} 21. Nf3
{[%clk 0:01:45.6]} 21... Bh6 {[%clk 0:02:09.5]} 22. Nh2 {[%clk 0:01:44.6]} 22...
g6 {[%clk 0:02:07.1]} 23. Ng4 {[%clk 0:01:43.9]} 23... Bg7 {[%clk 0:02:05.5]}
24. Qf3 {[%clk 0:01:41.6]} 24... O-O {[%clk 0:01:46.2]} 25. Bxf4 {[%clk
0:01:39.6]} 25... exf4 {[%clk 0:01:47.1]} 26. Qxf4 {[%clk 0:01:40.5]} 26... Ne5
{[%clk 0:01:45.5]} 27. Nxe5 {[%clk 0:01:36.4]} 27... Bxe5 {[%clk 0:01:45.3]} 28.
Qg4 {[%clk 0:01:36.7]} 28... Qf6 {[%clk 0:01:43.1]} 29. Nd1 {[%clk 0:01:23.7]}
29... Qg7 {[%clk 0:01:38.9]} 30. Qxh4 {[%clk 0:01:20.1]} 30... b5 {[%clk
0:01:34.6]} 31. axb5 {[%clk 0:01:19.6]} 31... Rxb5 {[%clk 0:01:34.3]} 32. Rxb5
{[%clk 0:01:19]} 32... axb5 {[%clk 0:01:34.6]} 33. b3 {[%clk 0:01:15.8]} 33...
Ra8 {[%clk 0:01:33.3]} 34. Ne3 {[%clk 0:01:15.2]} 34... Bd4 {[%clk 0:01:31.1]}
35. Qf4 {[%clk 0:01:13.7]} 35... Be5 {[%clk 0:01:30.8]} 36. Qf3 {[%clk
0:01:13.8]} 36... Ra2 {[%clk 0:01:28.8]} 37. Qe2 {[%clk 0:01:13.7]} 37... Bc3
{[%clk 0:01:26.9]} 38. Rd1 {[%clk 0:01:10.5]} 38... b4 {[%clk 0:01:23]} 39. Nc4
{[%clk 0:01:09.8]} 39... Qf6 {[%clk 0:01:23]} 40. g3 {[%clk 0:01:05.3]} 40...
Bd4 {[%clk 0:01:21.8]} 41. Kg2 {[%clk 0:01:04.2]} 41... Kg7 {[%clk 0:01:17.8]}
42. h4 {[%clk 0:01:04.5]} 42... Qe7 {[%clk 0:01:16.5]} 43. Rh1 {[%clk
0:00:59.9]} 43... f5 {[%clk 0:01:15.8]} 44. f3 {[%clk 0:00:54]} 44... fxe4
{[%clk 0:01:13.4]} 45. fxe4 {[%clk 0:00:53.2]} 45... Be5 {[%clk 0:01:11.1]} 46.
Rf1 {[%clk 0:00:34.1]} 46... Bd4 {[%clk 0:01:10.8]} 47. h5 {[%clk 0:00:30.7]}
47... Qg5 {[%clk 0:01:10.6]} 48. hxg6 {[%clk 0:00:30.5]} 48... Qxg6 {[%clk
0:01:07.2]} 49. Rf4 {[%clk 0:00:21.9]} 49... Qh6 {[%clk 0:00:53.8]} 50. Rg4+
{[%clk 0:00:19.1]} 50... Kf7 {[%clk 0:00:54]} 51. Rf4+ {[%clk 0:00:18]} 51...
Ke7 {[%clk 0:00:53.5]} 52. e5 {[%clk 0:00:18.4]} 52... dxe5 {[%clk 0:00:46.9]}
53. Nxe5 {[%clk 0:00:18.2]} 53... Rxc2 {[%clk 0:00:35.8]} 54. Qxc2 {[%clk
0:00:16.7]} 54... Bxe5 {[%clk 0:00:35.9]} 55. Qe4 {[%clk 0:00:16]} 55... Kd6
{[%clk 0:00:35.7]} 56. Rf5 {[%clk 0:00:16]} 56... Qg7 {[%clk 0:00:35.8]} 57. g4
{[%clk 0:00:15.4]} 57... Qh8 {[%clk 0:00:34.1]} 58. Kf3 {[%clk 0:00:15.7]} 58...
Qh3+ {[%clk 0:00:33.9]} 59. Ke2 {[%clk 0:00:15.9]} 59... Qh2+ {[%clk 0:00:33.5]}
60. Kd3 {[%clk 0:00:16.2]} 60... Qh3+ {[%clk 0:00:30.2]} 61. Kc4 {[%clk
0:00:16.2]} 61... Qc3+ {[%clk 0:00:28.4]} 62. Kb5 {[%clk 0:00:16.4]} 62... Qd4
{[%clk 0:00:26.5]} 63. Qxe5+ {[%clk 0:00:16.3]} 63... Qxe5 {[%clk 0:00:26.4]}
64. Rxe5 {[%clk 0:00:17]} 1-0

[Event "*** SCC Grand Prix: Titled Tuesday Blitz"]
[Site "Chess.com"]
[Date "2020.06.02"]
[Round "9"]
[White "TERMINATOR_PC"]
[Black "TrenerChos"]
[Result "1-0"]
[WhiteElo "2484"]
[BlackElo "2358"]
[TimeControl "180+1"]
[EndTime "11:48:08 PDT"]
[Termination "TERMINATOR_PC won by checkmate"]

1. e4 {[%clk 0:03:00.9]} 1... e5 {[%clk 0:02:59.7]} 2. Nf3 {[%clk 0:03:01]} 2...
d6 {[%clk 0:02:59.6]} 3. d4 {[%clk 0:03:01.6]} 3... Nd7 {[%clk 0:02:59.7]} 4.
Bc4 {[%clk 0:03:01]} 4... c6 {[%clk 0:02:59.7]} 5. O-O {[%clk 0:02:40.6]} 5...
Be7 {[%clk 0:02:56.7]} 6. dxe5 {[%clk 0:02:36.9]} 6... dxe5 {[%clk 0:02:49.1]}
7. Ng5 {[%clk 0:02:35.3]} 7... Nh6 {[%clk 0:02:46.9]} 8. Qh5 {[%clk 0:02:28.4]}
8... O-O {[%clk 0:02:42.6]} 9. Nc3 {[%clk 0:02:01.7]} 9... Nf6 {[%clk
0:02:40.3]} 10. Qh4 {[%clk 0:02:01.3]} 10... b5 {[%clk 0:02:35.9]} 11. Bb3
{[%clk 0:01:58.7]} 11... a5 {[%clk 0:02:33]} 12. a3 {[%clk 0:01:56.4]} 12...
Nhg4 {[%clk 0:01:58.1]} 13. h3 {[%clk 0:01:50.5]} 13... Nh6 {[%clk 0:01:53.2]}
14. Rd1 {[%clk 0:01:46.2]} 14... Qc7 {[%clk 0:01:51.5]} 15. Nf3 {[%clk
0:01:10.1]} 15... Nfg4 {[%clk 0:01:12.9]} 16. Qg3 {[%clk 0:01:08.8]} 16... a4
{[%clk 0:01:05.8]} 17. Ba2 {[%clk 0:01:06.4]} 17... Bc5 {[%clk 0:01:01.5]} 18.
hxg4 {[%clk 0:00:57.7]} 18... Nxg4 {[%clk 0:01:00.8]} 19. Rf1 {[%clk 0:00:36.2]}
19... Kh8 {[%clk 0:00:53.3]} 20. Ng5 {[%clk 0:00:31.2]} 20... Qe7 {[%clk
0:00:47.6]} 21. Qh4 {[%clk 0:00:26]} 21... h6 {[%clk 0:00:45.2]} 22. Nf3 {[%clk
0:00:26.5]} 22... Qc7 {[%clk 0:00:34.6]} 23. Be3 {[%clk 0:00:22]} 23... Nxe3
{[%clk 0:00:33]} 24. fxe3 {[%clk 0:00:22.2]} 24... Bxe3+ {[%clk 0:00:33.5]} 25.
Kh1 {[%clk 0:00:22.9]} 25... f5 {[%clk 0:00:29.5]} 26. exf5 {[%clk 0:00:20.4]}
26... Bxf5 {[%clk 0:00:28.1]} 27. Rae1 {[%clk 0:00:20.6]} 27... Ba7 {[%clk
0:00:17.8]} 28. Nxe5 {[%clk 0:00:20.6]} 28... Rae8 {[%clk 0:00:15.2]} 29. Nf7+
{[%clk 0:00:18.9]} 29... Kh7 {[%clk 0:00:11.9]} 30. Rxf5 {[%clk 0:00:18.8]}
30... Rxe1+ {[%clk 0:00:10.9]} 31. Qxe1 {[%clk 0:00:19.7]} 31... Qb6 {[%clk
0:00:09.1]} 32. Ng5+ {[%clk 0:00:17.6]} 32... hxg5 {[%clk 0:00:08.9]} 33. Rxf8
{[%clk 0:00:17.7]} 33... Qd4 {[%clk 0:00:09.5]} 34. Rf3 {[%clk 0:00:17.3]} 34...
Kg6 {[%clk 0:00:08.6]} 35. Qe4+ {[%clk 0:00:16.6]} 35... Qxe4 {[%clk 0:00:07.8]}
36. Nxe4 {[%clk 0:00:17.5]} 36... Bd4 {[%clk 0:00:08.1]} 37. c3 {[%clk
0:00:17.6]} 37... Be5 {[%clk 0:00:08.2]} 38. g4 {[%clk 0:00:16.7]} 38... Bf4
{[%clk 0:00:07.7]} 39. Kg2 {[%clk 0:00:16.9]} 39... Bc1 {[%clk 0:00:06]} 40. Rf2
{[%clk 0:00:16.1]} 40... Kh6 {[%clk 0:00:05.1]} 41. Bb1 {[%clk 0:00:16.5]} 41...
c5 {[%clk 0:00:04.8]} 42. Nxc5 {[%clk 0:00:16.7]} 42... g6 {[%clk 0:00:04.8]}
43. Nd3 {[%clk 0:00:16.6]} 43... Be3 {[%clk 0:00:04.1]} 44. Re2 {[%clk
0:00:17.1]} 44... Bb6 {[%clk 0:00:03.4]} 45. Re5 {[%clk 0:00:17.2]} 45... Ba7
{[%clk 0:00:03.4]} 46. Rxb5 {[%clk 0:00:17.3]} 46... Be3 {[%clk 0:00:02.4]} 47.
Re5 {[%clk 0:00:16.8]} 47... Ba7 {[%clk 0:00:03.3]} 48. Re7 {[%clk 0:00:17.1]}
48... Be3 {[%clk 0:00:03.5]} 49. Rxe3 {[%clk 0:00:16.9]} 49... Kg7 {[%clk
0:00:01.9]} 50. Re4 {[%clk 0:00:17.4]} 50... Kh6 {[%clk 0:00:01.9]} 51. Rxa4
{[%clk 0:00:18.3]} 51... Kg7 {[%clk 0:00:02.2]} 52. Rd4 {[%clk 0:00:19.2]} 52...
Kh6 {[%clk 0:00:02.5]} 53. a4 {[%clk 0:00:20.1]} 53... Kg7 {[%clk 0:00:02.9]}
54. a5 {[%clk 0:00:21]} 54... Kh6 {[%clk 0:00:02.9]} 55. a6 {[%clk 0:00:21.9]}
55... Kg7 {[%clk 0:00:03.8]} 56. a7 {[%clk 0:00:22.8]} 56... Kh6 {[%clk
0:00:04.7]} 57. a8=Q {[%clk 0:00:23.7]} 57... Kg7 {[%clk 0:00:05.6]} 58. Qc6
{[%clk 0:00:23.6]} 58... Kh6 {[%clk 0:00:06.5]} 59. Rd6 {[%clk 0:00:23.5]} 59...
Kg7 {[%clk 0:00:07.4]} 60. Rxg6+ {[%clk 0:00:23.7]} 60... Kh7 {[%clk 0:00:07.1]}
61. Rh6+ {[%clk 0:00:23.1]} 61... Kg7 {[%clk 0:00:07.1]} 62. Qf6+ {[%clk
0:00:23.6]} 62... Kg8 {[%clk 0:00:06.6]} 63. Rh8# {[%clk 0:00:24]} 1-0

[Event "*** SCC Grand Prix: Titled Tuesday Blitz"]
[Site "Chess.com"]
[Date "2020.06.02"]
[Round "9"]
[White "PetrolulSah"]
[Black "MF1966Idrisov"]
[Result "1-0"]
[WhiteElo "2241"]
[BlackElo "2343"]
[TimeControl "180+1"]
[EndTime "11:48:09 PDT"]
[Termination "PetrolulSah won on time"]

1. d4 {[%clk 0:03:00.9]} 1... d6 {[%clk 0:02:59.5]} 2. c4 {[%clk 0:02:58.5]}
2... f5 {[%clk 0:02:59.5]} 3. Nc3 {[%clk 0:02:56.7]} 3... Nf6 {[%clk 0:02:59.5]}
4. Nf3 {[%clk 0:02:51.5]} 4... e6 {[%clk 0:02:59.4]} 5. g3 {[%clk 0:02:49.6]}
5... Be7 {[%clk 0:02:59.5]} 6. Bg2 {[%clk 0:02:49.9]} 6... O-O {[%clk
0:02:59.7]} 7. O-O {[%clk 0:02:50.2]} 7... Ne4 {[%clk 0:02:59.9]} 8. d5 {[%clk
0:02:44.5]} 8... Nxc3 {[%clk 0:02:58.9]} 9. bxc3 {[%clk 0:02:44]} 9... e5 {[%clk
0:02:59]} 10. e4 {[%clk 0:02:42.4]} 10... f4 {[%clk 0:02:57.8]} 11. c5 {[%clk
0:02:37.5]} 11... Na6 {[%clk 0:02:49.8]} 12. cxd6 {[%clk 0:02:33.8]} 12... cxd6
{[%clk 0:02:49.7]} 13. c4 {[%clk 0:02:33]} 13... Nc5 {[%clk 0:02:48.9]} 14. Nd2
{[%clk 0:02:27.7]} 14... Bg5 {[%clk 0:02:41.6]} 15. Nb3 {[%clk 0:02:26]} 15...
fxg3 {[%clk 0:02:31.4]} 16. hxg3 {[%clk 0:02:22.3]} 16... b6 {[%clk 0:02:27.2]}
17. a4 {[%clk 0:02:16.3]} 17... Ba6 {[%clk 0:02:08.6]} 18. Nxc5 {[%clk
0:02:12.5]} 18... bxc5 {[%clk 0:02:06.1]} 19. Qc2 {[%clk 0:02:04.7]} 19... Rb8
{[%clk 0:02:03.5]} 20. Bxg5 {[%clk 0:01:55.7]} 20... Qxg5 {[%clk 0:02:00.6]} 21.
Rfb1 {[%clk 0:01:56.1]} 21... Qe7 {[%clk 0:01:45.7]} 22. Bh3 {[%clk 0:01:41]}
22... Rb4 {[%clk 0:01:37.7]} 23. Rxb4 {[%clk 0:01:36.3]} 23... cxb4 {[%clk
0:01:36.4]} 24. Rb1 {[%clk 0:01:33.8]} 24... Rb8 {[%clk 0:01:35]} 25. Qd2 {[%clk
0:01:12.4]} 25... Qb7 {[%clk 0:01:30.8]} 26. Bf1 {[%clk 0:01:10.2]} 26... Qb6
{[%clk 0:01:22.5]} 27. Kg2 {[%clk 0:00:39]} 27... b3 {[%clk 0:00:59.7]} 28. Rb2
{[%clk 0:00:33.2]} 28... Qb4 {[%clk 0:00:50.1]} 29. Qxb4 {[%clk 0:00:32]} 29...
Rxb4 {[%clk 0:00:48.9]} 30. Kf3 {[%clk 0:00:27.5]} 30... Kf7 {[%clk 0:00:38]}
31. a5 {[%clk 0:00:27.1]} 31... Ke7 {[%clk 0:00:34.2]} 32. Ke3 {[%clk
0:00:27.1]} 32... Kd7 {[%clk 0:00:33.4]} 33. f3 {[%clk 0:00:26.4]} 33... Kc7
{[%clk 0:00:28.2]} 34. Kd2 {[%clk 0:00:26.5]} 34... Ra4 {[%clk 0:00:20.4]} 35.
Rxb3 {[%clk 0:00:24.3]} 35... Rxa5 {[%clk 0:00:20.5]} 36. Kc3 {[%clk 0:00:21.1]}
36... Ra1 {[%clk 0:00:20.2]} 37. Bd3 {[%clk 0:00:20.5]} 37... Rg1 {[%clk
0:00:19]} 38. g4 {[%clk 0:00:20.3]} 38... Rc1+ {[%clk 0:00:17.4]} 39. Bc2 {[%clk
0:00:19.8]} 39... Bxc4 {[%clk 0:00:14.4]} 40. Ra3 {[%clk 0:00:19.8]} 40... a6
{[%clk 0:00:10.9]} 41. Kd2 {[%clk 0:00:19.9]} 41... Rf1 {[%clk 0:00:09.8]} 42.
Rc3 {[%clk 0:00:20]} 42... Kb7 {[%clk 0:00:08.5]} 43. Rxc4 {[%clk 0:00:20]}
43... Rxf3 {[%clk 0:00:08.6]} 44. Rc6 {[%clk 0:00:19.9]} 44... Rf4 {[%clk
0:00:08.5]} 45. Rxd6 {[%clk 0:00:19.1]} 45... Rxg4 {[%clk 0:00:08.2]} 46. Re6
{[%clk 0:00:19.3]} 46... h5 {[%clk 0:00:07.3]} 47. Rxe5 {[%clk 0:00:18.6]} 47...
g6 {[%clk 0:00:05.7]} 48. Ke1 {[%clk 0:00:17.2]} 48... h4 {[%clk 0:00:05.6]} 49.
Kf2 {[%clk 0:00:16.8]} 49... h3 {[%clk 0:00:05.1]} 50. Re7+ {[%clk 0:00:16.2]}
50... Kb6 {[%clk 0:00:04]} 51. Rh7 {[%clk 0:00:15.9]} 51... Rg2+ {[%clk
0:00:03.9]} 52. Kf1 {[%clk 0:00:15.2]} 52... Rxc2 {[%clk 0:00:03.4]} 53. Rxh3
{[%clk 0:00:15.2]} 53... Kc5 {[%clk 0:00:03.3]} 54. Rg3 {[%clk 0:00:15.1]} 54...
Kd4 {[%clk 0:00:02.8]} 55. Rxg6 {[%clk 0:00:15]} 55... Kxe4 {[%clk 0:00:03]} 56.
d6 {[%clk 0:00:15.3]} 56... Rd2 {[%clk 0:00:02.6]} 57. Ke1 {[%clk 0:00:15.2]}
1-0

[Event "*** SCC Grand Prix: Titled Tuesday Blitz"]
[Site "Chess.com"]
[Date "2020.06.02"]
[Round "9"]
[White "TregubovP"]
[Black "carlesdc96"]
[Result "1/2-1/2"]
[WhiteElo "2573"]
[BlackElo "2741"]
[TimeControl "180+1"]
[EndTime "11:48:10 PDT"]
[Termination "Game drawn - insufficient material"]

1. e4 {[%clk 0:03:00.9]} 1... e6 {[%clk 0:02:56.2]} 2. d4 {[%clk 0:03:00.5]}
2... d5 {[%clk 0:02:56.8]} 3. exd5 {[%clk 0:03:01]} 3... exd5 {[%clk 0:02:56.7]}
4. Nf3 {[%clk 0:03:01.2]} 4... Nf6 {[%clk 0:02:56.8]} 5. Bd3 {[%clk 0:03:00.4]}
5... Bd6 {[%clk 0:02:57.4]} 6. Qe2+ {[%clk 0:03:00.4]} 6... Be6 {[%clk
0:02:57.4]} 7. c4 {[%clk 0:02:54.8]} 7... dxc4 {[%clk 0:02:51.2]} 8. Bxc4 {[%clk
0:02:54.4]} 8... Qe7 {[%clk 0:02:51.2]} 9. O-O {[%clk 0:02:52]} 9... O-O {[%clk
0:02:50.6]} 10. Re1 {[%clk 0:02:45.2]} 10... Re8 {[%clk 0:02:45.1]} 11. Bxe6
{[%clk 0:02:40.7]} 11... fxe6 {[%clk 0:02:44.6]} 12. Nc3 {[%clk 0:02:38.8]}
12... Nbd7 {[%clk 0:02:41.7]} 13. Bg5 {[%clk 0:02:33.6]} 13... h6 {[%clk
0:02:39.1]} 14. Bh4 {[%clk 0:02:31.7]} 14... Qf7 {[%clk 0:02:33.8]} 15. Ne5
{[%clk 0:02:23.5]} 15... Bxe5 {[%clk 0:02:29.8]} 16. dxe5 {[%clk 0:02:23.3]}
16... Nh5 {[%clk 0:02:28.8]} 17. Rad1 {[%clk 0:02:17.3]} 17... Nb6 {[%clk
0:02:24.6]} 18. a4 {[%clk 0:02:11.8]} 18... Nf4 {[%clk 0:02:17.9]} 19. Qb5
{[%clk 0:01:57.3]} 19... c6 {[%clk 0:02:00.3]} 20. Qb3 {[%clk 0:01:50.7]} 20...
Nbd5 {[%clk 0:02:00.1]} 21. Ne4 {[%clk 0:01:50.1]} 21... Qg6 {[%clk 0:01:53.7]}
22. Bg3 {[%clk 0:01:47.5]} 22... b6 {[%clk 0:01:52.6]} 23. Bxf4 {[%clk
0:01:32.3]} 23... Nxf4 {[%clk 0:01:51.7]} 24. Qf3 {[%clk 0:01:32.8]} 24... Nd5
{[%clk 0:01:50.4]} 25. Nd6 {[%clk 0:01:27.5]} 25... Rf8 {[%clk 0:01:50.3]} 26.
Qe4 {[%clk 0:01:27]} 26... Qxe4 {[%clk 0:01:48.9]} 27. Rxe4 {[%clk 0:01:26.8]}
27... c5 {[%clk 0:01:42.4]} 28. g3 {[%clk 0:01:24.9]} 28... g5 {[%clk
0:01:41.9]} 29. h4 {[%clk 0:01:23.3]} 29... Kg7 {[%clk 0:01:41.9]} 30. Kg2
{[%clk 0:01:23]} 30... Kg6 {[%clk 0:01:40.9]} 31. a5 {[%clk 0:01:13.4]} 31...
bxa5 {[%clk 0:01:33.7]} 32. hxg5 {[%clk 0:01:00.5]} 32... hxg5 {[%clk
0:01:32.7]} 33. Ra1 {[%clk 0:00:59.2]} 33... Rab8 {[%clk 0:01:31.7]} 34. Re2
{[%clk 0:00:58.1]} 34... Rb4 {[%clk 0:01:11.5]} 35. Rxa5 {[%clk 0:00:57.4]}
35... Rfb8 {[%clk 0:01:11.2]} 36. Rxc5 {[%clk 0:00:47.7]} 36... Rxb2 {[%clk
0:01:10.8]} 37. Rxb2 {[%clk 0:00:47.6]} 37... Rxb2 {[%clk 0:01:11.7]} 38. Rc8
{[%clk 0:00:46.5]} 38... g4 {[%clk 0:01:06.9]} 39. Rg8+ {[%clk 0:00:46.2]} 39...
Kh7 {[%clk 0:01:07.1]} 40. Rg5 {[%clk 0:00:37.8]} 40... a5 {[%clk 0:00:46.1]}
41. Ne4 {[%clk 0:00:35.5]} 41... Kh6 {[%clk 0:00:40.9]} 42. Rg8 {[%clk
0:00:33.2]} 42... a4 {[%clk 0:00:39.6]} 43. Ra8 {[%clk 0:00:30.5]} 43... Ne3+
{[%clk 0:00:32.3]} 44. Kg1 {[%clk 0:00:28.2]} 44... Rb1+ {[%clk 0:00:30.5]} 45.
Kh2 {[%clk 0:00:28.1]} 45... Rb4 {[%clk 0:00:24.2]} 46. Nf6 {[%clk 0:00:25.9]}
46... Nd1 {[%clk 0:00:19.6]} 47. Kg2 {[%clk 0:00:23.8]} 47... Kg5 {[%clk
0:00:18.8]} 48. Nd7 {[%clk 0:00:18.1]} 48... Rb2 {[%clk 0:00:16.3]} 49. Rxa4
{[%clk 0:00:14.1]} 49... Rxf2+ {[%clk 0:00:16.4]} 50. Kg1 {[%clk 0:00:14.1]}
50... Rd2 {[%clk 0:00:17.3]} 51. Nf6 {[%clk 0:00:12.6]} 51... Kf5 {[%clk
0:00:15.2]} 52. Nxg4 {[%clk 0:00:12.2]} 52... Nc3 {[%clk 0:00:12.6]} 53. Rf4+
{[%clk 0:00:12.4]} 53... Kg5 {[%clk 0:00:12.9]} 54. Kf1 {[%clk 0:00:12.1]} 54...
Ne2 {[%clk 0:00:11.6]} 55. Nf2 {[%clk 0:00:09.1]} 55... Nxf4 {[%clk 0:00:09]}
56. Ne4+ {[%clk 0:00:09.4]} 56... Kg4 {[%clk 0:00:09]} 57. Nxd2 {[%clk
0:00:09.7]} 57... Kxg3 {[%clk 0:00:09.6]} 58. Ne4+ {[%clk 0:00:09.1]} 58... Kf3
{[%clk 0:00:10]} 59. Nc5 {[%clk 0:00:09.3]} 59... Ke3 {[%clk 0:00:10.3]} 60.
Nxe6 {[%clk 0:00:09.3]} 60... Nxe6 {[%clk 0:00:11.2]} 61. Ke1 {[%clk 0:00:09.6]}
61... Ke4 {[%clk 0:00:12.1]} 62. Kd1 {[%clk 0:00:09.8]} 62... Kxe5 {[%clk
0:00:13]} 1/2-1/2

[Event "*** SCC Grand Prix: Titled Tuesday Blitz"]
[Site "Chess.com"]
[Date "2020.06.02"]
[Round "9"]
[White "Sharpchess22"]
[Black "Haykoooo0o"]
[Result "1-0"]
[WhiteElo "2739"]
[BlackElo "2563"]
[TimeControl "180+1"]
[EndTime "11:48:10 PDT"]
[Termination "Sharpchess22 won by resignation"]

1. d4 {[%clk 0:03:00.9]} 1... Nf6 {[%clk 0:02:58.8]} 2. c4 {[%clk 0:03:00.3]}
2... c5 {[%clk 0:02:59.3]} 3. d5 {[%clk 0:03:00]} 3... b5 {[%clk 0:02:59.8]} 4.
cxb5 {[%clk 0:02:59.8]} 4... a6 {[%clk 0:03:00.2]} 5. bxa6 {[%clk 0:03:00.1]}
5... g6 {[%clk 0:03:00.8]} 6. Nc3 {[%clk 0:02:59.6]} 6... Bg7 {[%clk 0:03:01.3]}
7. g3 {[%clk 0:02:59.8]} 7... O-O {[%clk 0:03:01]} 8. Bg2 {[%clk 0:02:59.9]}
8... d6 {[%clk 0:03:01.3]} 9. Nf3 {[%clk 0:02:59.4]} 9... Bf5 {[%clk 0:03:01.6]}
10. Nh4 {[%clk 0:02:56.7]} 10... Bd7 {[%clk 0:02:59.9]} 11. O-O {[%clk
0:02:56.6]} 11... Nxa6 {[%clk 0:03:00.3]} 12. Rb1 {[%clk 0:02:49.7]} 12... Qb6
{[%clk 0:02:59.8]} 13. b3 {[%clk 0:02:48.8]} 13... Rfb8 {[%clk 0:02:51.3]} 14.
Bd2 {[%clk 0:02:47.2]} 14... Ne8 {[%clk 0:02:47.8]} 15. e4 {[%clk 0:02:38.1]}
15... Nec7 {[%clk 0:02:47.9]} 16. a4 {[%clk 0:02:34.6]} 16... Nb4 {[%clk
0:02:44.5]} 17. Kh1 {[%clk 0:02:19.3]} 17... Bc8 {[%clk 0:02:44.6]} 18. Bf3
{[%clk 0:02:15.1]} 18... Ba6 {[%clk 0:02:44.2]} 19. Be2 {[%clk 0:02:15.3]} 19...
Bxe2 {[%clk 0:02:33.5]} 20. Nxe2 {[%clk 0:02:16.2]} 20... Qa6 {[%clk 0:02:34.1]}
21. Bc3 {[%clk 0:02:15.7]} 21... Qd3 {[%clk 0:02:30.7]} 22. Qxd3 {[%clk
0:02:13.5]} 22... Nxd3 {[%clk 0:02:30.4]} 23. Kg2 {[%clk 0:02:02.6]} 23... Bxc3
{[%clk 0:02:23.1]} 24. Nxc3 {[%clk 0:02:02.4]} 24... Rb4 {[%clk 0:02:22.7]} 25.
Rfd1 {[%clk 0:02:00.3]} 25... Ne5 {[%clk 0:02:22.3]} 26. f4 {[%clk 0:01:29.1]}
26... Ng4 {[%clk 0:02:16.9]} 27. Re1 {[%clk 0:01:26.6]} 27... Rab8 {[%clk
0:02:14.9]} 28. h3 {[%clk 0:01:26.9]} 28... Nf6 {[%clk 0:02:14.1]} 29. Nf3
{[%clk 0:01:24]} 29... Rxb3 {[%clk 0:02:13.2]} 30. Nd2 {[%clk 0:01:24.2]} 30...
Rb2 {[%clk 0:02:09.5]} 31. Kf3 {[%clk 0:01:24.1]} 31... R8b4 {[%clk 0:01:57.7]}
32. Rxb2 {[%clk 0:01:21.6]} 32... Rxb2 {[%clk 0:01:58.6]} 33. Ke3 {[%clk
0:01:15.7]} 33... h5 {[%clk 0:01:29.7]} 34. Rb1 {[%clk 0:01:13.7]} 34... Rxb1
{[%clk 0:01:24.2]} 35. Ndxb1 {[%clk 0:01:12.9]} 35... h4 {[%clk 0:01:23.2]} 36.
gxh4 {[%clk 0:01:01]} 36... Kf8 {[%clk 0:01:22.5]} 37. Nd2 {[%clk 0:00:58.8]}
37... Kg7 {[%clk 0:01:17.3]} 38. a5 {[%clk 0:00:52.6]} 38... Kh6 {[%clk
0:01:16.3]} 39. Kf3 {[%clk 0:00:53]} 39... Kh5 {[%clk 0:01:10.8]} 40. Kg3 {[%clk
0:00:53.1]} 40... Na6 {[%clk 0:01:05.8]} 41. e5 {[%clk 0:00:49.1]} 41... Nd7
{[%clk 0:01:01.7]} 42. Nc4 {[%clk 0:00:48.7]} 42... dxe5 {[%clk 0:00:57.1]} 43.
fxe5 {[%clk 0:00:49.6]} 43... Nb4 {[%clk 0:00:42.1]} 44. d6 {[%clk 0:00:47.9]}
44... exd6 {[%clk 0:00:38.5]} 45. exd6 {[%clk 0:00:47.3]} 45... g5 {[%clk
0:00:24]} 46. hxg5 {[%clk 0:00:46.3]} 46... Kxg5 {[%clk 0:00:24.9]} 47. h4+
{[%clk 0:00:46]} 47... Kf6 {[%clk 0:00:24.5]} 48. Ne4+ {[%clk 0:00:41.1]} 48...
Kf5 {[%clk 0:00:21.9]} 49. Kf3 {[%clk 0:00:40.6]} 49... Ke6 {[%clk 0:00:14.2]}
50. Ng5+ {[%clk 0:00:30.9]} 50... Kf6 {[%clk 0:00:13.6]} 51. Nb6 {[%clk
0:00:26.9]} 51... Nxb6 {[%clk 0:00:07.2]} 52. axb6 {[%clk 0:00:26.6]} 52... c4
{[%clk 0:00:08.1]} 53. b7 {[%clk 0:00:23]} 53... Nc6 {[%clk 0:00:08.2]} 54. h5
{[%clk 0:00:16.8]} 54... c3 {[%clk 0:00:04.9]} 55. Ne4+ {[%clk 0:00:16.6]} 55...
Ke6 {[%clk 0:00:04.5]} 56. Nxc3 {[%clk 0:00:16.2]} 56... Kxd6 {[%clk 0:00:04.5]}
57. h6 {[%clk 0:00:16.7]} 57... Kc7 {[%clk 0:00:01.9]} 58. Kf4 {[%clk
0:00:16.5]} 58... Ne5 {[%clk 0:00:02.8]} 59. Kxe5 {[%clk 0:00:16.3]} 1-0